fUST/lending_fUST_20250828
["ID","MTS","AMOUNT","RATE_DAILY","PERIOD"]
[381845882,1756368688105,-1208.41,0.00021095,2]
[381845883,1756368688114,-480.0,0.00021095,2]
[381845884,1756368688124,-992.77,0.00021095,2]
[381845885,1756368688133,-2675.13,0.00021095,2]
[381845886,1756368688143,-480.0,0.00021095,2]
[381845887,1756368688153,-480.0,0.00021095,2]
[381845888,1756368688163,-480.0,0.00021095,2]
[381845889,1756368688172,-3538.8,0.00021095,2]
[381845890,1756368688181,-2959.19,0.00021095,2]
[381845891,1756368688190,-551.89,0.00021095,2]
[381845892,1756368688200,-599.43,0.00021095,2]
[381845893,1756368688210,-575.2,0.00021095,2]
[381845894,1756368688220,-480.0,0.00021095,2]
[381845895,1756368688229,-2408.95,0.00021095,2]
[381845896,1756368688241,-480.0,0.00021095,2]
[381845897,1756368688250,-2875.38,0.00021095,2]
[381845898,1756368688259,-480.0,0.00021095,2]
[381845899,1756368688269,-480.0,0.00021095,2]
[381845900,1756368688278,-590.63,0.00021095,2]
[381845901,1756368688288,-1940.49,0.00021095,2]
[381845902,1756368688296,-726.67,0.00021095,2]
[381845903,1756368688306,-4004.04,0.00021095,2]
[381845904,1756368688315,-1418.72,0.00021095,2]
[381845905,1756368688325,-1955.38,0.00021095,2]
[381845906,1756368688334,-480.0,0.00021095,2]
[381845907,1756368688343,-668.65,0.00021095,2]
[381845908,1756368688353,-480.0,0.00021095,2]
[381845909,1756368688362,-480.0,0.00021095,2]
[381845910,1756368688371,-3210.04,0.00021095,2]
[381845911,1756368688380,-1343.44,0.00021095,2]
[381845912,1756368688390,-804.04,0.00021095,2]
[381845913,1756368688399,-5317.78,0.00021095,2]
[381845914,1756368688408,-480.0,0.00021095,2]
[381845915,1756368688418,-841.22,0.00021095,2]
[381845916,1756368688428,-460.78888435,0.00021095,2]
[381845917,1756368688437,-480.0,0.00021095,2]
[381845918,1756368688446,-3006.69,0.00021095,2]
[381845919,1756368688456,-685.18,0.00021095,2]
[381845920,1756368688467,-480.0,0.00021095,2]
[381845921,1756368688476,-689.22,0.00021095,2]
[381845922,1756368688486,-480.0,0.00021095,2]
[381845923,1756368688495,-484.47,0.00021095,2]
[381845924,1756368688505,-574.94,0.00021095,2]
[381845925,1756368688515,-492.35095775,0.00021095,2]
[381845926,1756368688524,-480.0,0.00021095,2]
[381845927,1756368688534,-753.35,0.00021095,2]
[381845928,1756368688544,-666.61,0.00021095,2]
[381845929,1756368688553,-3346.08,0.00021095,2]
[381845930,1756368688562,-480.0,0.00021095,2]
[381845931,1756368688572,-591.14,0.00021095,2]
[381845932,1756368688581,-2256.48,0.00021095,2]
[381845933,1756368688591,-480.0,0.00021095,2]
[381845934,1756368688600,-1272.0,0.00021096,2]
[381845935,1756368688755,-500.0,0.00021096,2]
[381845936,1756368688766,-360.0,0.00021106,2]
[381845937,1756368688776,-2000.0,0.00021116,2]
[381845938,1756368688786,-2000.0,0.00021116,2]
[381845939,1756368688795,-2000.0,0.00021116,2]
[381845940,1756368688805,-637.49366838,0.00021116,2]
[381845941,1756368688814,-183.28838346,0.00021116,2]
[381845942,1756368688824,-167.98518684,0.00021116,2]
[381845943,1756368688833,-348.96036793,0.00021116,2]
[381845944,1756368688842,-1145.11635765,0.00021116,2]
[381845945,1756368688852,-508.6012517,0.00021116,2]
[381845946,1756368688861,-1060.07191761,0.00021116,2]
[381845947,1756368688870,-2000.0,0.00021116,2]
[381845948,1756368688880,-1513.42447899,0.00021116,2]
[381845949,1756368688890,-510.34617617,0.00021116,2]
[381845950,1756368688899,-2000.0,0.00021116,2]
[381845951,1756368688908,-2000.0,0.00021116,2]
[381845952,1756368688918,-1511.1760143,0.00021116,2]
[381845953,1756368688928,-2000.0,0.00021116,2]
[381845954,1756368688938,-2000.0,0.00021116,2]
[381845955,1756368688948,-100000.0,0.00021263,2]
[381845956,1756368688957,-2500.0,0.00021364,2]
[381845957,1756368688968,-1848.87508055,0.00021364,2]
[381845958,1756368688978,-1087.59133941,0.00021364,2]
[381845959,1756368688987,-2500.0,0.00021364,2]
[381845960,1756368688997,-2500.0,0.00021364,2]
[381845961,1756368689006,-2500.0,0.00021364,2]
[381845962,1756368689016,-480.0,0.00021369,2]
[381845963,1756368689025,-480.0,0.00021369,2]
[381845964,1756368689034,-480.0,0.00021369,2]
[381845965,1756368689043,-480.0,0.00021369,2]
[381845966,1756368689052,-480.0,0.00021369,2]
[381845967,1756368689062,-480.0,0.00021369,2]
[381845968,1756368689071,-480.0,0.00021369,2]
[381845969,1756368689080,-480.0,0.00021369,2]
[381845970,1756368689090,-480.0,0.00021369,2]
[381845971,1756368689099,-688.44,0.00021369,2]
[381845972,1756368689108,-538.35,0.00021369,2]
[381845973,1756368689118,-480.0,0.00021369,2]
[381845974,1756368689127,-480.0,0.00021369,2]
[381845975,1756368689136,-669.69,0.00021369,2]
[381845976,1756368689146,-480.0,0.00021369,2]
[381845977,1756368689155,-501.14,0.00021369,2]
[381845978,1756368689165,-480.0,0.00021369,2]
[381845979,1756368689174,-480.0,0.00021369,2]
[381845980,1756368689184,-480.0,0.00021369,2]
[381845981,1756368689193,-480.0,0.00021369,2]
[381845982,1756368689203,-480.0,0.00021369,2]
[381845983,1756368689212,-480.0,0.00021369,2]
[381845984,1756368689223,-480.0,0.00021369,2]
[381845985,1756368689233,-525.97408124,0.00021369,2]
[381845986,1756368689242,-480.0,0.00021369,2]
[381845987,1756368689253,-480.0,0.00021369,2]
[381845988,1756368689262,-480.0,0.00021369,2]
[381845989,1756368689271,-480.0,0.00021369,2]
[381845990,1756368689280,-480.0,0.00021369,2]
[381845991,1756368689289,-480.0,0.00021369,2]
[381845992,1756368689298,-480.0,0.00021369,2]
[381845993,1756368689307,-802.51,0.00021369,2]
[381845994,1756368689316,-512.97,0.00021369,2]
[381845995,1756368689325,-480.0,0.00021369,2]
[381845996,1756368689335,-597.90251669,0.00021369,2]
[381845997,1756368689344,-963.41,0.00021369,2]
[381845998,1756368689354,-491.78,0.00021369,2]
[381845999,1756368689363,-480.0,0.00021369,2]
[381846000,1756368689372,-659.7,0.00021369,2]
[381846001,1756368689382,-480.0,0.00021369,2]
[381846002,1756368689392,-732.68,0.00021369,2]
[381846003,1756368689401,-480.0,0.00021369,2]
[381846004,1756368689411,-480.0,0.00021369,2]
[381846005,1756368689420,-780.03,0.00021369,2]
[381846006,1756368689429,-480.0,0.00021369,2]
[381846007,1756368689438,-480.0,0.00021369,2]
[381846008,1756368689448,-480.0,0.00021369,2]
[381846009,1756368689457,-480.0,0.00021369,2]
[381846010,1756368689466,-480.0,0.00021369,2]
[381846011,1756368689476,-498.42,0.00021369,2]
[381846012,1756368689485,-480.0,0.00021369,2]
[381846013,1756368689494,-480.0,0.00021369,2]
[381846014,1756368689504,-480.0,0.00021369,2]
[381846015,1756368689513,-480.0,0.00021369,2]
[381846016,1756368689522,-480.0,0.00021369,2]
[381846017,1756368689532,-480.0,0.00021369,2]
[381846018,1756368689541,-526.17,0.00021369,2]
[381846019,1756368689550,-480.0,0.00021369,2]
[381846020,1756368689559,-480.0,0.00021369,2]
[381846021,1756368689569,-1929.93,0.00021369,2]
[381846022,1756368689578,-502.21,0.00021369,2]
[381846023,1756368689587,-595.92,0.00021369,2]
[381846024,1756368689597,-480.0,0.00021369,2]
[381846025,1756368689607,-598.45,0.00021369,2]
[381846026,1756368689616,-480.0,0.00021369,2]
[381846027,1756368689626,-480.0,0.00021369,2]
[381846028,1756368689638,-480.0,0.00021369,2]
[381846029,1756368689647,-290.48538482,0.00021369,2]
[381846030,1756368689657,-872.89,0.00021369,2]
[381846031,1756368689667,-480.0,0.00021369,2]
[381846032,1756368689678,-480.0,0.00021369,2]
[381846033,1756368689687,-480.0,0.00021369,2]
[381846034,1756368689696,-976.25,0.00021369,2]
[381846035,1756368689706,-480.0,0.00021369,2]
[381846036,1756368689717,-1373.25,0.00021369,2]
[381846037,1756368689726,-480.0,0.00021369,2]
[381846038,1756368689735,-480.0,0.00021369,2]
[381846039,1756368689744,-480.0,0.00021369,2]
[381846040,1756368689753,-504.19,0.00021369,2]
[381846041,1756368689762,-767.13,0.00021369,2]
[381846042,1756368689772,-520.54,0.00021369,2]
[381846043,1756368689781,-2382.1,0.00021369,2]
[381846044,1756368689790,-2382.1,0.00021369,2]
[381846045,1756368689799,-480.0,0.00021369,2]
[381846046,1756368689809,-480.0,0.00021369,2]
[381846047,1756368689819,-480.0,0.00021369,2]
[381846048,1756368689828,-480.0,0.00021369,2]
[381846049,1756368689837,-480.0,0.00021369,2]
[381846050,1756368689851,-480.0,0.00021369,2]
[381846051,1756368689860,-489.02,0.00021369,2]
[381846052,1756368689870,-480.0,0.00021369,2]
[381846053,1756368689879,-480.0,0.00021369,2]
[381846054,1756368689890,-480.0,0.00021369,2]
[381846055,1756368689899,-480.0,0.00021369,2]
[381846056,1756368689909,-589.61,0.00021369,2]
[381846057,1756368689919,-468.88772611,0.00021369,2]
[381846058,1756368689928,-480.0,0.00021369,2]
[381846059,1756368689938,-480.0,0.00021369,2]
[381846060,1756368689947,-644.86,0.00021369,2]
[381846061,1756368689957,-505.14,0.00021369,2]
[381846062,1756368689976,-480.0,0.00021369,2]
[381846063,1756368689985,-647.72,0.00021369,2]
[381846064,1756368689996,-649.78,0.00021369,2]
[381846065,1756368690005,-593.44,0.00021369,2]
[381846066,1756368690015,-480.0,0.00021369,2]
[381846067,1756368690024,-480.0,0.00021369,2]
[381846068,1756368690034,-604.94,0.00021369,2]
[381846069,1756368690043,-480.0,0.00021369,2]
[381846070,1756368690053,-1278.6,0.00021369,2]
[381846071,1756368690073,-823.23,0.00021369,2]
[381846072,1756368690082,-480.0,0.00021369,2]
[381846073,1756368690091,-541.49,0.00021369,2]
[381846074,1756368690101,-485.61,0.00021369,2]
[381846075,1756368690110,-480.0,0.00021369,2]
[381846076,1756368690120,-296.50861773,0.00021369,2]
[381846077,1756368690130,-480.0,0.00021369,2]
[381846078,1756368690140,-480.0,0.00021369,2]
[381846079,1756368690150,-480.0,0.00021369,2]
[381846080,1756368690159,-480.0,0.00021369,2]
[381846081,1756368690168,-970.42,0.00021369,2]
[381846082,1756368690177,-702.47,0.00021369,2]
[381846083,1756368690187,-480.0,0.00021369,2]
[381846084,1756368690196,-480.0,0.00021369,2]
[381846085,1756368690206,-801.09,0.00021369,2]
[381846086,1756368690216,-480.0,0.00021369,2]
[381846087,1756368690226,-987.37,0.00021369,2]
[381846088,1756368690235,-480.0,0.00021369,2]
[381846089,1756368690245,-480.0,0.00021369,2]
[381846090,1756368690255,-480.0,0.00021369,2]
[381846091,1756368690264,-652.09,0.00021369,2]
[381846092,1756368690273,-1536.53,0.00021369,2]
[381846093,1756368690283,-480.0,0.00021369,2]
[381846094,1756368690293,-480.0,0.00021369,2]
[381846095,1756368690302,-480.0,0.00021369,2]
[381846096,1756368690311,-480.0,0.00021369,2]
[381846097,1756368690321,-480.0,0.00021369,2]
[381846098,1756368690330,-480.0,0.00021369,2]
[381846099,1756368690340,-480.0,0.00021369,2]
[381846100,1756368690350,-480.0,0.00021369,2]
[381846101,1756368690359,-480.0,0.00021369,2]
[381846102,1756368690368,-480.0,0.00021369,2]
[381846103,1756368690377,-480.0,0.00021369,2]
[381846104,1756368690387,-1114.98,0.00021369,2]
[381846105,1756368690397,-480.0,0.00021369,2]
[381846106,1756368690406,-224.05521964,0.00021369,2]
[381846107,1756368690416,-496.98,0.00021369,2]
[381846108,1756368690426,-199.90470182,0.00021369,2]
[381846109,1756368690435,-755.96,0.00021369,2]
[381846110,1756368690444,-480.0,0.00021369,2]
[381846111,1756368690454,-480.0,0.00021369,2]
[381846112,1756368690463,-1531.96,0.00021369,2]
[381846113,1756368690472,-480.0,0.00021369,2]
[381846114,1756368690482,-614.44,0.00021369,2]
[381846115,1756368690491,-533.7,0.00021369,2]
[381846116,1756368690501,-480.0,0.00021369,2]
[381846117,1756368690511,-480.0,0.00021369,2]
[381846118,1756368690521,-641.43,0.00021369,2]
[381846119,1756368690530,-480.0,0.00021369,2]
[381846120,1756368690540,-1077.03,0.00021369,2]
[381846121,1756368690549,-480.0,0.00021369,2]
[381846122,1756368690559,-762.03,0.00021369,2]
[381846123,1756368690569,-3749.64,0.00021369,2]
[381846124,1756368690578,-480.0,0.00021369,2]
[381846125,1756368690588,-971.18,0.00021369,2]
[381846126,1756368690598,-939.95,0.00021369,2]
[381846127,1756368690607,-664.91,0.00021369,2]
[381846128,1756368690616,-480.0,0.00021369,2]
[381846129,1756368690627,-480.0,0.00021369,2]
[381846130,1756368690636,-532.21,0.00021369,2]
[381846131,1756368690647,-535.45,0.00021369,2]
[381846132,1756368690658,-483.61,0.00021369,2]
[381846133,1756368690667,-523.15,0.00021369,2]
[381846134,1756368690676,-1258.49,0.00021369,2]
[381846135,1756368690686,-1150.69,0.00021369,2]
[381846136,1756368690695,-1015.93,0.00021369,2]
[381846137,1756368690704,-1273.65,0.00021369,2]
[381846138,1756368690713,-480.0,0.00021369,2]
[381846139,1756368690722,-480.0,0.00021369,2]
[381846140,1756368690731,-648.16,0.00021369,2]
[381846141,1756368690741,-480.0,0.00021369,2]
[381846142,1756368690751,-480.0,0.00021369,2]
[381846143,1756368690760,-480.0,0.00021369,2]
[381846144,1756368690771,-867.23,0.00021369,2]
[381846145,1756368690781,-608.08,0.00021369,2]
[381846146,1756368690790,-1196.05,0.00021369,2]
[381846147,1756368690799,-480.0,0.00021369,2]
[381846148,1756368690808,-534.79,0.00021369,2]
[381846149,1756368690818,-1557.82,0.00021369,2]
[381846150,1756368690827,-480.0,0.00021369,2]
[381846151,1756368690838,-2120.87,0.00021369,2]
[381846152,1756368690847,-871.18,0.00021369,2]
[381846153,1756368690856,-480.0,0.00021369,2]
[381846154,1756368690866,-3577.89,0.00021369,2]
[381846155,1756368690875,-480.0,0.00021369,2]
[381846156,1756368690885,-480.0,0.00021369,2]
[381846157,1756368690896,-579.54,0.00021369,2]
[381846158,1756368690906,-480.0,0.00021369,2]
[381846159,1756368690916,-1167.75,0.00021369,2]
[381846160,1756368690926,-2863.33,0.00021369,2]
[381846161,1756368690936,-5982.9,0.00021369,2]
[381846162,1756368690945,-627.97,0.00021369,2]
[381846163,1756368690955,-953.03,0.00021369,2]
[381846164,1756368690964,-480.0,0.00021369,2]
[381846165,1756368690974,-480.0,0.00021369,2]
[381846166,1756368690983,-480.0,0.00021369,2]
[381846167,1756368690993,-602.82,0.00021369,2]
[381846168,1756368691003,-504.57,0.00021369,2]
[381846169,1756368691013,-611.16,0.00021369,2]
[381846170,1756368691022,-480.0,0.00021369,2]
[381846171,1756368691032,-480.0,0.00021369,2]
[381846172,1756368691042,-1084.84,0.00021369,2]
[381846173,1756368691052,-810.87,0.00021369,2]
[381846174,1756368691061,-480.0,0.00021369,2]
[381846175,1756368691071,-1208.41,0.00021369,2]
[381846176,1756368691080,-480.0,0.00021369,2]
[381846177,1756368691089,-992.77,0.00021369,2]
[381846178,1756368691098,-2675.13,0.00021369,2]
[381846179,1756368691107,-480.0,0.00021369,2]
[381846180,1756368691117,-480.0,0.00021369,2]
[381846181,1756368691127,-480.0,0.00021369,2]
[381846182,1756368691136,-3538.8,0.00021369,2]
[381846183,1756368691147,-2959.19,0.00021369,2]
[381846184,1756368691157,-551.89,0.00021369,2]
[381846185,1756368691168,-599.43,0.00021369,2]
[381846186,1756368691183,-575.2,0.00021369,2]
[381846187,1756368691193,-480.0,0.00021369,2]
[381846188,1756368691203,-2408.95,0.00021369,2]
[381846189,1756368691213,-480.0,0.00021369,2]
[381846190,1756368691222,-344.32037957,0.00021369,2]
[381846191,1756368691232,-2875.38,0.00021369,2]
[381846192,1756368691241,-480.0,0.00021369,2]
[381846193,1756368691251,-590.63,0.00021369,2]
[381846194,1756368691260,-1940.49,0.00021369,2]
[381846195,1756368691270,-726.67,0.00021369,2]
[381846196,1756368691279,-4004.04,0.00021369,2]
[381846197,1756368691288,-1418.72,0.00021369,2]
[381846198,1756368691298,-1955.38,0.00021369,2]
[381846199,1756368691307,-480.0,0.00021369,2]
[381846200,1756368691317,-668.65,0.00021369,2]
[381846201,1756368691326,-480.0,0.00021369,2]
[381846202,1756368691335,-480.0,0.00021369,2]
[381846203,1756368691344,-3210.04,0.00021369,2]
[381846204,1756368691353,-1343.44,0.00021369,2]
[381846205,1756368691363,-804.04,0.00021369,2]
[381846206,1756368691373,-520.58509844,0.00021369,2]
[381846207,1756368691382,-5317.78,0.00021369,2]
[381846208,1756368691392,-841.22,0.00021369,2]
[381846209,1756368691402,-480.0,0.00021369,2]
[381846210,1756368691411,-3006.69,0.00021369,2]
[381846211,1756368691560,-685.18,0.00021369,2]
[381846212,1756368691570,-480.0,0.00021369,2]
[381846213,1756368691579,-689.22,0.00021369,2]
[381846214,1756368691589,-480.0,0.00021369,2]
[381846215,1756368691598,-484.47,0.00021369,2]
[381846216,1756368691608,-574.94,0.00021369,2]
[381846217,1756368691618,-165.83,0.00021369,2]
[381846218,1756368691627,-753.35,0.00021369,2]
[381846219,1756368691636,-666.61,0.00021369,2]
[381846220,1756368691646,-3346.08,0.00021369,2]
[381846221,1756368691657,-346.27953916,0.00021369,2]
[381846222,1756368691667,-591.14,0.00021369,2]
[381846223,1756368691677,-2256.48,0.00021369,2]
[381846224,1756368691686,-480.0,0.00021369,2]
[381846225,1756368691697,-1272.0,0.0002137,2]
[381846226,1756368691707,-500.0,0.0002137,2]
[381846227,1756368691716,-3000.0,0.000214,2]
[381846228,1756368691726,-3000.0,0.000214,2]
[381846229,1756368691735,-201.93286099,0.00021401,2]
[381846230,1756368691746,-3000.0,0.0002141,2]
[381846231,1756368691756,-3000.0,0.0002141,2]
[381846232,1756368691766,-3000.0,0.0002142,2]
[381846233,1756368691775,-3000.0,0.0002142,2]
[381846234,1756368691785,-4000.0,0.00021429,4]
[381846235,1756368691795,-3000.0,0.0002143,2]
[381846236,1756368691804,-3000.0,0.0002143,2]
[381846237,1756368691814,-3000.0,0.0002144,2]
[381846238,1756368691823,-3000.0,0.0002144,2]
[381846239,1756368691832,-3000.0,0.0002145,2]
[381846240,1756368691842,-3000.0,0.0002145,2]
[381846241,1756368691851,-3000.0,0.0002146,2]
[381846242,1756368691861,-3000.0,0.0002146,2]
[381846243,1756368691871,-3000.0,0.0002147,2]
[381846244,1756368691880,-3000.0,0.0002147,2]
[381846245,1756368691889,-3000.0,0.0002148,2]
[381846246,1756368691899,-3000.0,0.0002148,2]
[381846247,1756368691908,-3000.0,0.0002149,2]
[381846248,1756368691918,-3000.0,0.0002149,2]
[381846249,1756368691928,-3158.22279266,0.000215,2]
[381846250,1756368691937,-3000.0,0.000215,2]
[381846251,1756368691946,-3000.0,0.000215,2]
[381846252,1756368691956,-3000.0,0.0002151,2]
[381846253,1756368691965,-3000.0,0.0002151,2]
[381846254,1756368691975,-3000.0,0.0002152,2]
[381846255,1756368691985,-3000.0,0.0002152,2]
[381846256,1756368691995,-3000.0,0.0002153,2]
[381846257,1756368692004,-3000.0,0.0002153,2]
[381846258,1756368692014,-206.26851661,0.00021534,2]
[381846259,1756368692023,-3000.0,0.0002154,2]
[381846260,1756368692033,-3000.0,0.0002154,2]
[381846261,1756368692043,-3000.0,0.0002155,2]
[381846262,1756368692052,-3000.0,0.0002155,2]
[381846263,1756368692061,-3000.0,0.0002156,2]
[381846264,1756368692072,-3000.0,0.0002156,2]
[381846265,1756368692081,-3000.0,0.0002157,2]
[381846266,1756368692091,-3000.0,0.0002157,2]
[381846267,1756368692100,-181.05516357,0.00021571,2]
[381846268,1756368692110,-3000.0,0.0002158,2]
[381846269,1756368692119,-3000.0,0.0002158,2]
[381846270,1756368692129,-3000.0,0.0002159,2]
[381846271,1756368692138,-3000.0,0.0002159,2]
[381846272,1756368692151,-3000.0,0.000216,2]
[381846273,1756368692160,-3000.0,0.000216,2]
[381846274,1756368692169,-276.988102,0.00021606,2]
[381846275,1756368692179,-209.640334,0.00021606,2]
[381846276,1756368692188,-3000.0,0.0002161,2]
[381846277,1756368692197,-3000.0,0.0002161,2]
[381846278,1756368692207,-662.67725997,0.00021616,2]
[381846279,1756368692216,-1686.98362334,0.00021616,2]
[381846280,1756368692226,-2000.0,0.00021616,2]
[381846281,1756368692235,-2000.0,0.00021616,2]
[381846282,1756368692244,-2000.0,0.00021616,2]
[381846283,1756368692254,-1400.02168337,0.00021616,2]
[381846284,1756368692264,-1338.04162689,0.00021616,2]
[381846285,1756368692273,-3000.0,0.0002162,2]
[381846286,1756368692282,-3000.0,0.0002162,2]
[381846287,1756368692293,-19143.72017528,0.00021627,2]
[381846288,1756368692303,-3000.0,0.0002163,2]
[381846289,1756368692312,-3000.0,0.0002163,2]
[381846290,1756368692322,-3000.0,0.0002164,2]
[381846291,1756368692331,-3000.0,0.0002164,2]
[381846292,1756368692341,-480.0,0.00021643,2]
[381846293,1756368692350,-480.0,0.00021643,2]
[381846294,1756368692359,-480.0,0.00021643,2]
[381846295,1756368692371,-480.0,0.00021643,2]
[381846296,1756368692380,-480.0,0.00021643,2]
[381846297,1756368692392,-480.0,0.00021643,2]
[381846298,1756368692401,-480.0,0.00021643,2]
[381846299,1756368692410,-480.0,0.00021643,2]
[381846300,1756368692420,-480.0,0.00021643,2]
[381846301,1756368692430,-688.44,0.00021643,2]
[381846302,1756368692439,-538.35,0.00021643,2]
[381846303,1756368692449,-480.0,0.00021643,2]
[381846304,1756368692459,-480.0,0.00021643,2]
[381846305,1756368692468,-669.69,0.00021643,2]
[381846306,1756368692478,-480.0,0.00021643,2]
[381846307,1756368692487,-501.14,0.00021643,2]
[381846308,1756368692496,-480.0,0.00021643,2]
[381846309,1756368692506,-360.34831367,0.00021643,2]
[381846310,1756368692515,-480.0,0.00021643,2]
[381846311,1756368692525,-480.0,0.00021643,2]
[381846312,1756368692534,-480.0,0.00021643,2]
[381846313,1756368692543,-480.0,0.00021643,2]
[381846314,1756368692553,-424.59656544,0.00021643,2]
[381846315,1756368692562,-480.0,0.00021643,2]
[381846316,1756368692572,-480.0,0.00021643,2]
[381846317,1756368692581,-480.0,0.00021643,2]
[381846318,1756368692590,-480.0,0.00021643,2]
[381846319,1756368692599,-480.0,0.00021643,2]
[381846320,1756368692609,-480.0,0.00021643,2]
[381846321,1756368692618,-480.0,0.00021643,2]
[381846322,1756368692627,-802.51,0.00021643,2]
[381846323,1756368692637,-512.97,0.00021643,2]
[381846324,1756368692647,-480.0,0.00021643,2]
[381846325,1756368692657,-963.41,0.00021643,2]
[381846326,1756368692668,-491.78,0.00021643,2]
[381846327,1756368692677,-480.0,0.00021643,2]
[381846328,1756368692687,-659.7,0.00021643,2]
[381846329,1756368692696,-480.0,0.00021643,2]
[381846330,1756368692705,-732.68,0.00021643,2]
[381846331,1756368692714,-480.0,0.00021643,2]
[381846332,1756368692723,-480.0,0.00021643,2]
[381846333,1756368692732,-780.03,0.00021643,2]
[381846334,1756368692741,-480.0,0.00021643,2]
[381846335,1756368692751,-480.0,0.00021643,2]
[381846336,1756368692761,-480.0,0.00021643,2]
[381846337,1756368692770,-480.0,0.00021643,2]
[381846338,1756368692779,-480.0,0.00021643,2]
[381846339,1756368692788,-498.42,0.00021643,2]
[381846340,1756368692797,-480.0,0.00021643,2]
[381846341,1756368692807,-480.0,0.00021643,2]
[381846342,1756368692816,-480.0,0.00021643,2]
[381846343,1756368692825,-480.0,0.00021643,2]
[381846344,1756368692834,-480.0,0.00021643,2]
[381846345,1756368692844,-480.0,0.00021643,2]
[381846346,1756368692853,-526.17,0.00021643,2]
[381846347,1756368692862,-480.0,0.00021643,2]
[381846348,1756368692871,-1929.93,0.00021643,2]
[381846349,1756368692880,-502.21,0.00021643,2]
[381846350,1756368692889,-595.92,0.00021643,2]
[381846351,1756368692900,-480.0,0.00021643,2]
[381846352,1756368692910,-598.45,0.00021643,2]
[381846353,1756368692920,-480.0,0.00021643,2]
[381846354,1756368692929,-168.42366209,0.00021643,2]
[381846355,1756368692939,-480.0,0.00021643,2]
[381846356,1756368692949,-872.89,0.00021643,2]
[381846357,1756368692959,-480.0,0.00021643,2]
[381846358,1756368692968,-383.09919564,0.00021643,2]
[381846359,1756368692978,-480.0,0.00021643,2]
[381846360,1756368692987,-976.25,0.00021643,2]
[381846361,1756368692996,-480.0,0.00021643,2]
[381846362,1756368693005,-1373.25,0.00021643,2]
[381846363,1756368693015,-480.0,0.00021643,2]
[381846364,1756368693025,-480.0,0.00021643,2]
[381846365,1756368693035,-480.0,0.00021643,2]
[381846366,1756368693044,-504.19,0.00021643,2]
[381846367,1756368693053,-767.13,0.00021643,2]
[381846368,1756368693062,-520.54,0.00021643,2]
[381846369,1756368693071,-2382.1,0.00021643,2]
[381846370,1756368693080,-480.0,0.00021643,2]
[381846371,1756368693089,-480.0,0.00021643,2]
[381846372,1756368693100,-480.0,0.00021643,2]
[381846373,1756368693109,-480.0,0.00021643,2]
[381846374,1756368693120,-211.77244617,0.00021643,2]
[381846375,1756368693129,-480.0,0.00021643,2]
[381846376,1756368693138,-489.02,0.00021643,2]
[381846377,1756368693148,-504.85145266,0.00021643,2]
[381846378,1756368693158,-480.0,0.00021643,2]
[381846379,1756368693168,-480.0,0.00021643,2]
[381846380,1756368693179,-296.86210592,0.00021643,2]
[381846381,1756368693188,-589.61,0.00021643,2]